fUST/lending_fUST_20251202
["ID","MTS","AMOUNT","RATE_DAILY","PERIOD"]
[395306871,1764604827394,204.68296419,9.9e-05,2]
[395306872,1764604835495,204.68296419,9.9e-05,2]
[395306873,1764604862625,300.0,1e-05,2]
[395306874,1764604862896,300.0,1.1e-05,2]
[395306875,1764604863247,300.0,1.2e-05,2]
[395306876,1764604863546,300.0,1.2e-05,2]
[395306877,1764604863873,300.0,1.3e-05,2]
[395306878,1764604864193,300.0,1.4e-05,2]
[395306879,1764604864759,300.0,1.5e-05,2]
[395306880,1764604865264,300.0,1.5e-05,2]
[395306881,1764604865557,300.0,1.6e-05,2]
[395306882,1764604865695,300.0,1.7e-05,2]
[395306883,1764604866023,300.0,1.8e-05,2]
[395306884,1764604866356,300.0,1.8e-05,2]
[395306885,1764604866672,236.63407162,1.9e-05,2]
[395306886,1764604866704,63.36592838,1.9e-05,2]
[395306887,1764604866988,300.0,2e-05,2]
[395306888,1764604867441,300.0,2.1e-05,2]
[395306889,1764604867764,300.0,2.1e-05,2]
[395306890,1764604868067,300.0,2.2e-05,2]
[395306891,1764604868422,300.0,2.3e-05,2]
[395306892,1764604868798,300.0,2.4e-05,2]
[395306893,1764604869097,300.0,2.5e-05,2]
[395306894,1764604869424,300.0,2.5e-05,2]
[395306895,1764604869749,300.0,2.6e-05,2]
[395306896,1764604870053,300.0,2.7e-05,2]
[395306897,1764604870413,300.0,2.8e-05,2]
[395306898,1764604870767,300.0,2.8e-05,2]
[395306899,1764604871113,300.0,2.9e-05,2]
[395306900,1764604871416,300.0,3e-05,2]
[395306901,1764604871911,300.0,3.1e-05,2]
[395306902,1764604872029,300.0,3.1e-05,2]
[395306903,1764604872347,136.63407162,3.2e-05,2]
[395306904,1764604872378,163.36592838,3.2e-05,2]
[395306905,1764604872656,300.0,3.3e-05,2]
[395306906,1764604872977,300.0,3.4e-05,2]
[395306907,1764604873411,300.0,3.4e-05,2]
[395306908,1764604873711,300.0,3.5e-05,2]
[395306909,1764604874043,300.0,3.6e-05,2]
[395306910,1764604874342,300.0,3.7e-05,2]
[395306911,1764604874717,300.0,3.8e-05,2]
[395306912,1764604875286,300.0,3.8e-05,2]
[395306913,1764604875645,300.0,3.9e-05,2]
[395306914,1764604875965,300.0,4e-05,2]
[395306915,1764604876275,300.0,4.1e-05,2]
[395306916,1764604876808,300.0,4.1e-05,2]
[395306917,1764604876911,300.0,4.2e-05,2]
[395306918,1764604877223,300.0,4.3e-05,2]
[395306919,1764604877612,300.0,4.4e-05,2]
[395306920,1764604877926,300.0,4.4e-05,2]
[395306921,1764604878255,36.63407162,4.5e-05,2]
[395306922,1764604878287,263.36592838,4.5e-05,2]
[395306923,1764604878589,300.0,4.6e-05,2]
[395306924,1764604881274,300.0,4.7e-05,2]
[395306925,1764604881666,300.0,4.8e-05,2]
[395306929,1764605103292,250.0,0.0002,30]
[395306932,1764605229150,-155.57925954,0.00010148,2]
[395306933,1764605229173,-6.95250955,0.00010197,2]
[395306934,1764605230095,-167.80401119,0.00010197,2]
[395306973,1764605355097,-204.68296419,9.896e-05,2]
[395306974,1764605355116,-152.46767435,0.00010046,2]
[395306975,1764605355136,-782.21444102,0.00010197,2]
[395306976,1764605362128,-243.02903824,0.00010197,2]
[395306977,1764605362148,-777.57786182,0.00010197,2]
[395306978,1764605364109,-422.42213818,0.00010197,2]
[395306979,1764605364132,-300.0,0.00010197,2]
[395306980,1764605364152,-191.0,0.00010197,2]
[395306981,1764605364172,-300.0,0.00010198,2]
[395306982,1764605364193,-300.0,0.00010198,2]
[395306983,1764605364214,-300.0,0.00010198,2]
[395306984,1764605364235,-300.0,0.00010199,2]
[395306985,1764605364256,-300.0,0.00010199,2]
[395306986,1764605364276,-300.0,0.00010199,2]
[395306987,1764605364299,-300.0,0.00010199,2]
[395306988,1764605364322,-300.0,0.00010199,2]
[395306989,1764605364343,-300.0,0.00010199,2]
[395306990,1764605364363,-300.0,0.00010199,2]
[395306991,1764605364384,-300.0,0.00010199,2]
[395306992,1764605364405,-300.0,0.00010199,2]
[395306993,1764605364426,-300.0,0.00010199,2]
[395306994,1764605364445,-300.0,0.00010199,2]
[395306995,1764605364465,-300.0,0.00010199,2]
[395306996,1764605364485,-300.0,0.00010199,2]
[395306997,1764605364505,-300.0,0.00010199,2]
[395306998,1764605364525,-300.0,0.00010199,2]
[395306999,1764605364546,-382.185752,0.00010402,2]
[395307000,1764605368086,-217.814248,0.00010402,2]
[395307001,1764605368108,-300.0,0.00011216,2]
[395307002,1764605368129,-300.0,0.00011216,2]
[395307003,1764605368149,-1680.0,0.00011217,2]
[395307004,1764605368171,-720.0,0.00011442,2]
[395307005,1764605368192,-190.85658578,0.00012038,2]
[395307006,1764605368212,-57.40678342,0.00012046,2]
[395307027,1764605432313,-190.85658579,0.00012038,2]
[395307028,1764605432323,-155.79370686,0.00012038,2]
[395307029,1764605432332,-122.50507232,0.00012046,2]
[395307030,1764605432343,-249.0,0.00012046,2]
[395307031,1764605432352,-79.85145358,0.00012123,2]
[395307032,1764605432363,-273.86177798,0.00012123,2]
[395307033,1764605432372,-3.42756086,0.0001214,2]
[395307034,1764605432384,-146.57243914,0.0001214,2]
[395307035,1764605432393,-150.0,0.0001214,2]
[395307037,1764605432402,-150.255,0.0001214,2]
[395307038,1764605432411,-414.0,0.00012141,2]
[395307039,1764605432421,-40.52898323,0.00012282,2]
[395307040,1764605432432,-244.47101677,0.00012282,2]
[395307041,1764605432442,-172.69401741,0.00012283,2]
[395307051,1764605438300,-400.59033389,0.00012283,2]
[395307052,1764605438312,-7531.81145355,0.00012283,2]
[395307338,1764605443421,-4601.43998411,0.00012283,2]
[395307340,1764605443433,-1822.25709309,0.00012283,2]
[395307342,1764605443445,-1046.32681666,0.00012283,2]
[395307363,1764605443721,-5105.55717501,0.00012283,2]
[395307365,1764605443732,-654.66755994,0.00012283,2]
[395307368,1764605443753,-419.18467264,0.00012283,2]
[395307526,1764605446230,-1277.32845475,0.00012283,2]
[395307528,1764605446241,-116257.92729205,0.00012283,2]
[395307550,1764605446486,247.42957126,9.111e-05,2]
[395307569,1764605446888,-697.71665078,0.00012283,2]
[395307570,1764605446903,-1689.1,0.00012283,2]
[395307582,1764605450497,198.3260944,9.02e-05,2]
[395307593,1764605623454,643.0,0.0002,120]
[395307630,1764606062152,250.0,0.0002,30]
[395307631,1764606145950,186.0,0.000204,120]
[395307632,1764606147124,186.0,0.0002142,120]
[395307638,1764606238934,198.3260944,0.0001401,9]
[395307640,1764606254287,3096.35007801,0.0001401,9]
[395307662,1764606438134,-190.85658578,9.725e-05,2]
[395307663,1764606438158,-190.85658578,9.826e-05,2]
[395307664,1764606438180,-190.85658578,9.925e-05,2]
[395307665,1764606438201,-155.79370685,0.00010336,2]
[395307666,1764606438225,-153.05450893,0.0001034,2]
[395307667,1764606438247,-239.0,0.00010831,2]
[395307668,1764606438268,-787.50110635,0.00011276,2]
[395307671,1764606446087,-1140.93658558,0.00011163,2]
[395307673,1764606547107,-302.33252052,0.00011063,2]
[395307674,1764606547133,-10851.67369927,0.00011163,2]
[395307678,1764606600277,244.62688461,9.111e-05,2]
[395307711,1764606632468,-626.61547539,0.00011051,2]
[395307713,1764606632478,-104.35087508,0.00011163,2]
[395307715,1764606632500,-699.80639332,0.00011163,2]
[395307716,1764606632509,-241.0,0.00011163,2]
[395307718,1764606632519,-12.1983224,0.00011219,2]
[395307760,1764606638764,-304.06053694,0.00011051,2]
[395307763,1764606638776,-435.0,0.00011051,2]
[395307765,1764606638788,-201.74585638,0.00011051,2]
[395307767,1764606638798,-141.00829521,0.00011219,2]
[395307769,1764606638809,-500.0,0.00011275,2]
[395307771,1764606638818,-500.0,0.00011275,2]
[395307772,1764606638827,-500.0,0.00011275,2]
[395307774,1764606638837,-330.24139097,0.00011275,2]
[395307776,1764606638849,-169.75860903,0.00011275,2]
[395307777,1764606638860,-352.23973446,0.00011275,2]
[395307778,1764606638871,-920.73714785,0.00011276,2]
[395307779,1764606638916,-928.98345371,0.00011276,2]
[395307780,1764606638927,-1703.45085993,0.00011276,2]
[395307781,1764606638939,-6034.82050878,0.00011276,2]
[395307912,1764606640754,-528.89051107,0.00011276,2]
[395307914,1764606640766,-890.80323467,0.00011276,2]
[395307916,1764606640778,-310.27,0.00011276,2]
[395307918,1764606640790,-1478.81183724,0.00011276,2]
[395307920,1764606640799,-155.79370686,0.00011317,2]
[395307922,1764606640808,-300.0,0.00011501,2]
[395307924,1764606640818,-300.0,0.00011501,2]
[395307926,1764606640828,-300.0,0.00011501,2]
[395307928,1764606640837,-300.0,0.00011501,2]
[395307930,1764606640847,-300.0,0.00011501,2]
[395307932,1764606640858,-300.0,0.00011501,2]
[395307934,1764606640867,-274.53119011,0.00011501,2]
[395308072,1764606643750,-25.46880989,0.00011501,2]
[395308073,1764606643760,-300.0,0.00011501,2]
[395308074,1764606643770,-300.0,0.00011501,2]
[395308075,1764606643779,-300.0,0.00011501,2]
[395308076,1764606643788,-300.0,0.00011501,2]
[395308077,1764606643798,-300.0,0.00011501,2]
[395308078,1764606643807,-95.61459036,0.00011501,2]
[395308079,1764606643853,-0.32876673,0.00011501,2]
[395308100,1764606646573,-20.82871225,0.00011501,2]
[395308102,1764606646691,-183.22793066,0.00011501,2]
[395308103,1764606646703,-300.0,0.00011501,2]
[395308104,1764606646714,-295.5512009,0.00011501,2]
[395308105,1764606646725,-4.4487991,0.00011501,2]
[395308106,1764606646735,-600.0,0.00011888,2]
[395308107,1764606646745,-237.0112009,0.00012037,2]
[395308108,1764606646757,-6100.09323503,0.00012037,2]
[395308109,1764606646767,-210.77,0.00012037,2]
[395308110,1764606646776,-500.0,0.00012182,2]
[395308111,1764606646786,-500.0,0.00012182,2]
[395308112,1764606646795,-308.76093154,0.00012182,2]
[395308113,1764606646805,-5019.37583343,0.00012183,2]
[395308133,1764607022871,250.0,0.0002,30]
[395308185,1764607635127,-600.0,0.000105,2]
[395308186,1764607635147,-31.79190795,0.00010606,2]
[395308187,1764607641085,-568.20809205,0.00010606,2]
[395308188,1764607641106,-154.28061729,0.00010767,2]
[395308189,1764607641127,-241.0,0.00011152,2]
[395308190,1764607641146,-300.0,0.00011609,2]
[395308191,1764607641170,-241.11048033,0.00011609,2]
[395308195,1764607763084,-300.0,0.00010395,2]
[395308196,1764607763107,-457.28122128,0.000105,2]
[395308198,1764607772104,-110.92687077,0.000105,2]
[395308199,1764607772128,-195.88951967,0.00011609,2]
[395308200,1764607772151,-300.0,0.00011609,2]
[395308201,1764607772173,-406.8156411,0.0001161,2]
[395308202,1764607772197,-5696.8620629,0.0001161,2]
[395308203,1764607772222,-7161.82552,0.0001161,2]
[395308204,1764607798658,326.2235229,9.111e-05,2]
[395308246,1764607831643,-1559.12554849,0.00011494,2]
[395308273,1764607837709,-1740.69947021,0.00011494,2]
[395308274,1764607837719,-3299.8250187,0.0001161,2]
[395308275,1764607837728,-168.616,0.00011939,2]
[395308276,1764607837737,-1000.12323379,0.00012,2]
[395308277,1764607837746,-300.0,0.00012082,2]
[395308278,1764607837756,-500.0,0.00012082,2]
[395308279,1764607837765,-507.62589974,0.00012082,2]
[395308280,1764607837774,-11159.54200935,0.00012083,2]
[395308281,1764607837785,-5100.0,0.00012083,2]
[395308282,1764607837822,-6585.4205691,0.00012083,2]
[395308283,1764607837833,-4247.00643768,0.00012083,2]
[395308284,1764607837846,-776.68808795,0.00012083,2]
[395308374,1764607839867,-5584.88395591,0.00012083,2]
[395308376,1764607839878,-37928.9774062,0.00012083,2]
[395308964,1764607845838,-341.0,0.00011379,2]
[395308967,1764607845852,-1399.69947021,0.00011379,2]
[395308968,1764607845862,-9970.21323477,0.00012083,2]
[395309108,1764607957905,1000.0,0.0002,30]
[395309112,1764607982425,250.0,0.0002,30]
[395309165,1764608698086,217.62728852,9.111e-05,2]
[395309167,1764608747110,-205.7684695,0.00010657,2]
[395309168,1764608747134,-49.0292377,0.00010765,2]
[395309170,1764608833093,-156.7392318,0.0001055,2]
[395309171,1764608833116,-5.79253729,0.00010657,2]
[395309172,1764608846092,-150.94669451,0.00010657,2]
[395309173,1764608846114,-159.34343633,0.00010929,2]
[395309174,1764608846135,-119.9391986,0.00011095,2]
[395309178,1764608942345,250.0,0.0002,30]
[395309180,1764608952092,-355.0608014,0.00010984,2]
[395309181,1764608952113,-55.0608014,0.00011095,2]
[395309182,1764608952134,-300.0,0.00011095,2]
[395309183,1764608952153,-159.2681528,0.00011095,2]
[395309184,1764608952174,-621.73594008,0.00011095,2]
[395309185,1764608952193,-1857.06614896,0.00011096,2]
[395309211,1764609031915,-1200.0,0.00010984,2]
[395309213,1764609031925,-459.15579256,0.00010985,2]
[395309215,1764609031937,-779.99660122,0.00010985,2]
[395309245,1764609037857,-2132.41304471,0.00010985,2]
[395309251,1764609037911,-3500.0,0.00010985,2]
[395309694,1764609043012,-1698.76,0.00010985,2]
[395313646,1764609725398,153.57596331,9.157e-05,2]
[395313647,1764609805219,153.57596331,9.16e-05,2]
[395313648,1764609864023,153.57596331,9.16e-05,2]
[395313649,1764609903263,250.0,0.0002,30]
[395313651,1764609922580,157.23092541,9.223e-05,2]
[395313652,1764609944496,157.23092541,9.223e-05,2]
[395313658,1764609966991,157.23092541,9.223e-05,2]
[395313659,1764609988816,157.23092541,9.223e-05,2]
[395313660,1764610011274,157.23092541,9.223e-05,2]
[395313661,1764610018740,360.24368005,9.088e-05,2]
[395313662,1764610033288,-157.23092541,9.316e-05,2]
[395313663,1764610033309,-157.23092541,9.41e-05,2]
[395313664,1764610033333,-298.14107641,9.567e-05,2]
[395313665,1764610033353,-340.3919261,9.567e-05,2]
[395313666,1764610033377,-187.94173225,9.736e-05,2]
[395313667,1764610033412,157.23092541,9.223e-05,2]
[395313670,1764610039082,-3162.49278843,9.736e-05,2]
[395313671,1764610051083,-152.53827458,9.639e-05,2]
[395313672,1764610051103,-509.59397882,9.736e-05,2]
[395313673,1764610051124,-216.3027588,0.00010548,2]
[395313674,1764610051144,-300.0,0.00011091,2]
[395313675,1764610051164,-300.0,0.00011092,2]
[395313676,1764610051183,-300.0,0.00011092,2]
[395313677,1764610051204,-1.87135012,0.00011092,2]
[395313684,1764610198781,217.73604778,9.111e-05,2]
[395313720,1764610232055,-481.53497135,0.00010981,2]
[395313722,1764610232064,-240.0,0.00010981,2]
[395313724,1764610232074,-157.14739708,0.00011036,2]
[395313726,1764610232083,-170.973,0.00011094,2]
[395313728,1764610232092,-300.0,0.00011095,2]
[395313730,1764610232102,-130.34465657,0.00011095,2]
[395313732,1764610232113,-1069.65534343,0.00011095,2]
[395313734,1764610232122,-446.41396321,0.00011095,2]
[395313736,1764610232132,-443.26782484,0.00011096,2]
[395313796,1764610238174,-302.33252052,0.00010881,2]
[395313798,1764610238184,-15172.1980088,0.00011096,2]
[395313800,1764610238193,-397.0225846,0.0001137,2]
[395313802,1764610238204,-397.0225846,0.0001137,2]
[395313804,1764610238214,-397.0225846,0.0001137,2]
[395313806,1764610238224,-397.0225846,0.000114,2]
[395313808,1764610238234,-434.64671491,0.00011636,2]
[395313810,1764610238244,-3464.4330185,0.00011788,2]
[395313812,1764610238253,-620.04885361,0.000118,2]
[395313814,1764610238262,-500.0,0.00011841,2]
[395313816,1764610238272,-500.0,0.00011841,2]
[395313818,1764610238282,-266.23567191,0.00011841,2]
[395313820,1764610238292,-8672.4354591,0.00011842,2]
[395313822,1764610238303,-171.185194,0.00011842,2]
[395313824,1764610238313,-1220.4469236,0.00011842,2]
[395313827,1764610238325,-151.0,0.00011842,2]
[395313828,1764610238334,-151.0,0.00011842,2]
[395313830,1764610238344,-151.0,0.00011842,2]
[395313832,1764610238354,-151.0,0.00011842,2]
[395313835,1764610238365,-151.0,0.00011842,2]
[395313837,1764610238377,-151.0,0.00011842,2]
[395313839,1764610238390,-151.0,0.00011842,2]
[395313841,1764610238399,-151.0,0.00011842,2]
[395313843,1764610238409,-151.0,0.00011842,2]
[395313844,1764610238419,-151.0,0.00011842,2]
[395313847,1764610238429,-219.546753,0.00011842,2]
[395313848,1764610238439,-151.0,0.00011842,2]
[395313850,1764610238449,-151.0,0.00011842,2]
[395313852,1764610238458,-151.0,0.00011842,2]
[395313854,1764610238468,-152.518217,0.00011842,2]
[395313856,1764610238477,-231.70408,0.00011842,2]
[395313858,1764610238486,-299.32661203,0.00011876,2]
[395313860,1764610238496,-160.0,0.00011876,2]
[395313862,1764610238505,-160.0,0.00011876,2]
[395313865,1764610238514,-160.0,0.00011876,2]
[395313866,1764610238524,-160.0,0.00011876,2]
[395313868,1764610238534,-160.0,0.00011876,2]
[395313871,1764610238543,-500.0,0.00011876,2]
[395313872,1764610238553,-195.80501418,0.00011876,2]
[395313875,1764610238563,-500.0,0.00011876,2]
[395313877,1764610238573,-500.0,0.00011876,2]
[395313879,1764610238583,-500.0,0.00011876,2]
[395313881,1764610238592,-500.0,0.00011876,2]
[395313882,1764610238602,-500.0,0.00011876,2]
[395313884,1764610238611,-500.0,0.00011876,2]
[395313886,1764610238621,-250.0,0.00011876,2]
[395313888,1764610238632,-500.0,0.00011876,2]
[395313889,1764610238650,-250.0,0.00011876,2]
[395313890,1764610238662,-500.0,0.00011876,2]
[395313891,1764610238672,-500.0,0.00011876,2]
[395313892,1764610238682,-250.0,0.00011876,2]
[395313893,1764610238692,-500.0,0.00011876,2]
[395313894,1764610238702,-251.98006874,0.00011876,2]
[395313895,1764610238712,-250.0,0.00011876,2]
[395313896,1764610238721,-500.0,0.00011876,2]
[395313897,1764610238731,-250.0,0.00011876,2]
[395313898,1764610238741,-500.0,0.00011876,2]
[395313899,1764610238751,-231.28369723,0.00011876,2]
[395313900,1764610238760,-250.0,0.00011876,2]
[395313901,1764610238770,-500.0,0.00011876,2]
[395313902,1764610238780,-250.0,0.00011876,2]
[395313903,1764610238790,-500.0,0.00011876,2]
[395313904,1764610238800,-250.0,0.00011876,2]
[395313905,1764610238810,-500.0,0.00011876,2]
[395313906,1764610238820,-250.0,0.00011876,2]
[395313907,1764610238831,-500.0,0.00011876,2]
[395313908,1764610238840,-250.0,0.00011876,2]
[395313909,1764610238850,-250.0,0.00011876,2]
[395313910,1764610238859,-250.0,0.00011876,2]
[395313911,1764610238869,-324.35507689,0.00011876,2]
[395313912,1764610238879,-500.0,0.00011876,2]
[395313913,1764610238888,-500.0,0.00011876,2]
[395313914,1764610238898,-500.0,0.00011876,2]
[395313915,1764610238907,-500.0,0.00011876,2]
[395313916,1764610238917,-500.0,0.00011876,2]
[395313917,1764610238927,-500.0,0.00011876,2]
[395313918,1764610238937,-500.0,0.00011876,2]
[395313919,1764610238947,-600.23725749,0.00011876,2]
[395313920,1764610238956,-500.0,0.00011876,2]
[395313922,1764610238966,-285.281482,0.00011876,2]
[395313923,1764610238975,-151.0,0.00011876,2]
[395313924,1764610238984,-151.0,0.00011876,2]
[395313926,1764610238994,-151.0,0.00011876,2]
[395313928,1764610239005,-152.964153,0.00011876,2]
[395313930,1764610239015,-151.0,0.00011876,2]
[395313932,1764610239025,-151.0,0.00011876,2]
[395313934,1764610239035,-151.0,0.00011876,2]
[395313936,1764610239046,-151.0,0.00011876,2]
[395313938,1764610239055,-151.0,0.00011876,2]
[395313940,1764610239065,-151.0,0.00011876,2]
[395313942,1764610239075,-151.0,0.00011876,2]
[395313944,1764610239086,-231.164532,0.00011876,2]
[395313946,1764610239095,-151.0,0.00011876,2]
[395313948,1764610239105,-151.0,0.00011876,2]
[395313950,1764610239114,-151.0,0.00011876,2]
[395313952,1764610239124,-151.0,0.00011876,2]
[395313955,1764610239135,-151.0,0.00011876,2]
[395313956,1764610239145,-151.0,0.00011876,2]
[395313958,1764610239155,-151.0,0.00011876,2]
[395313960,1764610239164,-151.0,0.00011876,2]
[395313963,1764610239174,-151.0,0.00011876,2]
[395313964,1764610239183,-282.498804,0.00011876,2]
[395313966,1764610239193,-151.0,0.00011876,2]
[395313968,1764610239202,-151.0,0.00011876,2]
[395313970,1764610239211,-151.0,0.00011876,2]
[395313972,1764610239220,-151.0,0.00011883,2]
[395313974,1764610239230,-151.0,0.00011883,2]
[395313976,1764610239240,-151.0,0.00011883,2]
[395313978,1764610239249,-151.0,0.00011883,2]
[395313980,1764610239259,-151.0,0.00011883,2]
[395313982,1764610239269,-151.0,0.00011883,2]
[395313984,1764610239278,-151.0,0.00011883,2]
[395313986,1764610239287,-446.690292,0.00011883,2]
[395313988,1764610239297,-151.0,0.00011883,2]
[395313990,1764610239307,-151.0,0.00011883,2]
[395313992,1764610239316,-151.0,0.00011883,2]
[395313994,1764610239326,-151.0,0.00011883,2]
[395313996,1764610239336,-151.0,0.00011883,2]
[395313998,1764610239345,-151.471549,0.00011883,2]
[395314000,1764610239354,-44634.11970809,0.00011883,2]
[395314003,1764610239367,-1798.58919684,0.00011883,2]
[395314005,1764610239380,-1000.9999859,0.00011883,2]
[395314109,1764610240446,-15515.88182216,0.00011883,2]
[395314110,1764610240458,-848.635,0.00011883,2]
[395314111,1764610240469,-4569.9783086,0.00011883,2]
[395314112,1764610240500,-4779.3437609,0.00011883,2]
[395314259,1764610243171,-500.0,0.00011876,2]
[395314260,1764610243181,-500.0,0.00011876,2]
[395314261,1764610243191,-1391.46310972,0.00011883,2]
[395314267,1764610243277,-8623.43010328,0.00011883,2]
[395314270,1764610243341,-484.29175519,0.00011876,2]
[395314294,1764610246330,-424.355779,0.00011842,2]
[395314295,1764610246341,-424.355779,0.00011842,2]
[395314296,1764610246350,-15.70824481,0.00011876,2]
[395314297,1764610246360,-500.0,0.00011876,2]
[395314298,1764610246369,-84.82082285,0.00011876,2]
[395314299,1764610272125,150.0,0.00019071,30]
[395314313,1764610842070,150.0,0.00018856,30]
[395314315,1764610862579,250.0,0.0002,30]
[395314324,1764611237148,-300.0,0.00010498,2]
[395314325,1764611237425,-300.0,0.00010604,2]
[395314326,1764611237447,-154.00444914,0.00010765,2]
[395314327,1764611237467,-300.0,0.00011768,2]
[395314328,1764611237488,-719.0,0.00011768,2]
[395314329,1764611237509,-300.0,0.00011768,2]
[395314330,1764611237530,-500.0,0.00011769,2]
[395314331,1764611237551,-500.0,0.00011769,2]
[395314332,1764611237571,-500.0,0.00011769,2]
[395314333,1764611237591,-231.28369723,0.00011769,2]
[395314334,1764611237610,-500.0,0.00011769,2]
[395314335,1764611237628,-500.0,0.00011769,2]
[395314336,1764611237649,-220.16064562,0.00011769,2]
[395314337,1764611237670,-170.973,0.00011775,2]
[395314338,1764611237699,-6513.57235536,0.00011776,2]
[395314339,1764611249087,-600.0,0.00011658,2]
[395314340,1764611249111,-146.64335338,0.00011776,2]
[395314552,1764611438197,-250.0,0.00011541,2]
[395314554,1764611438207,-244.0,0.00011541,2]
[395314556,1764611438219,-165.84348332,0.00011599,2]
[395314558,1764611438231,-300.0,0.00011657,2]
[395314560,1764611438240,-300.0,0.00011657,2]
[395314562,1764611438250,-300.0,0.00011657,2]
[395314564,1764611438261,-11151.67369927,0.00011658,2]
[395314566,1764611438271,-500.0,0.00011675,2]
[395314568,1764611438282,-386.36497033,0.00011675,2]
[395314570,1764611438292,-327412.06353146,0.00011676,2]
[395314588,1764611438459,-119868.19326139,0.00011676,2]
[395314620,1764611440403,-9449.75286779,0.00011676,2]
[395314621,1764611440459,-714.16590829,0.00011676,2]
[395314668,1764611443340,-1426.44384347,0.00011676,2]
[395314669,1764611443501,-755.00000026,0.00011676,2]
[395314678,1764611447835,-457.28122128,0.00011559,2]
[395314679,1764611447845,-4642.71877872,0.00011676,2]
[395314680,1764611447889,-55185.78523789,0.00011676,2]
[395314682,1764611822397,250.0,0.0002,30]
[395314684,1764612346126,-300.0,0.00010443,2]
[395314685,1764612346149,-300.0,0.00010548,2]
[395314686,1764612346169,-787.5011063,0.00010655,2]
[395314687,1764612346190,-166.33236607,0.00010938,2]
[395314688,1764612346209,-151.0,0.000116,2]
[395314689,1764612346229,-231.28369723,0.00011669,2]
[395314690,1764612346249,-1016.14670386,0.00011669,2]
[395314691,1764612346285,-122.60618795,0.00011675,2]
[395314693,1764612449099,-156.7392318,0.00011442,2]
[395314694,1764612449119,-166.19258748,0.000115,2]
[395314695,1764612449151,-156.7392318,0.00011558,2]
[395314696,1764612449171,-177.39381205,0.00011675,2]
[395314697,1764612449191,-240.0,0.00011675,2]
[395314698,1764612449213,-1342.59404726,0.00011676,2]
[395314699,1764612452287,-162.53176909,0.00011676,2]
[395314734,1764612632416,-1334.81205037,0.0001146,2]
[395314737,1764612632428,-7222.82331273,0.0001146,2]
[395314739,1764612632438,-620.45547923,0.00011575,2]
[395314741,1764612632448,-60169.08621605,0.00011576,2]
[395314912,1764612638503,-100000.0,0.00011576,2]
[395314913,1764612638557,-297.08773857,0.00011576,2]
[395314941,1764612640772,-393.79151111,0.00011576,2]
[395314943,1764612640785,-1833.34169242,0.00011576,2]
[395315016,1764612646646,-56607.7502102,0.00011576,2]
[395315017,1764612646754,-7803.63525925,0.00011576,2]
[395315018,1764612646766,-19405.39892497,0.00011576,2]
[395315019,1764612646776,-618.33521754,0.00011576,2]
[395315048,1764612724910,1121.0,9.252e-05,2]
[395315049,1764612782284,250.0,0.0002,30]
[395315055,1764613548327,-170.973,0.00011231,2]
[395315056,1764613548366,-136.51400614,0.00011344,2]
[395315057,1764613633118,-190.85658578,0.00011325,2]
[395315058,1764613633141,-34.45899386,0.00011344,2]
[395315059,1764613633162,-162.86873573,0.000114,2]
[395315060,1764613633183,-434.31883547,0.00011475,2]
[395315061,1764613633205,-154.02318482,0.00011475,2]
[395315062,1764613633226,-300.0,0.00011475,2]
[395315063,1764613633248,-300.0,0.00011475,2]
[395315064,1764613633272,-1493.68306496,0.00011476,2]
[395315065,1764613635099,-1140.93658558,0.00011476,2]
[395315066,1764613653102,-1676.94006143,0.00011476,2]
[395315067,1764613742161,250.0,0.0002,30]
[395315098,1764613831604,-231.28369723,0.00011469,2]